Cogmind - Beta 10.2 @@@ ROGUE MODE // 2020.10.30 @ 12:56:02 // Halloween2020/ForbiddenLore Player: blelm Result: Self-destructed Performance ------------- Evolutions (3) 1500 Regions Visited (7) 1400 Robots Destroyed (76) 380 Value Destroyed (2382) 2382 Prototype IDs (28) 560 Alien Tech Used (0) 0 Bonus (383) 383 TOTAL SCORE: 6605 Bonus ------- High Alert Combat Kills 23 Follower Combat Kills 60 Aligned with FarCom 300 Cogmind --------- Core Integrity 402/700 Matter 192/300 Energy 158/300 System Corruption 14% Temperature Cool (0) Movement Hovering (116) Ox1 Location -7/Waste Parts ------- > --- POWER (1) -------- Enhanced Nuclear Core > --- PROPULSION (4) --- Gravmag System Gravmag System > --- UTILITY (6) ------ Large Storage Unit Large Storage Unit Advanced Terrain Scan Processor Hacking Suite > --- WEAPON (2) ------- (None) > --- INVENTORY (16) --- Light Angular Momentum Engine Improved Airjet High-capacity Matter Pod (0) Improved Propulsion Shielding Improved Light Armor Plating Hacking Suite Hacking Suite Improved Hacking Suite Field Recycling Unit (0) Gauss Rifle Flak Gun Flak Gun Chainsword Peak State ------------ > --- POWER ------------ Enhanced Nuclear Core > --- PROPULSION ------- Gravmag System Gravmag System Improved Airjet Improved Airjet > --- UTILITY ---------- Large Storage Unit Large Storage Unit High-capacity Storage Unit Advanced Terrain Scanner Advanced Terrain Scan Processor Improved Medium Armor Plating > --- WEAPON ----------- Flak Gun Chainsword > --- INVENTORY -------- Enhanced Nuclear Core Light Angular Momentum Engine Gravmag System Gravmag System Gravmag System Gravmag System High-capacity Storage Unit High-capacity Storage Unit High-capacity Matter Pod Improved Propulsion Shielding Improved Light Armor Plating Hacking Suite Hacking Suite Hacking Suite Hacking Suite System Shield Minigun Flak Gun Flak Gun Flak Gun Rocket Launcher [Rating: 51] Favorites ----------- Power Light Nuclear Core Engine Ion Engine Power Core Light Nuclear Core Propulsion Light Treads Treads Light Treads Leg Aluminum Leg Wheel Compact Wheel Hover Unit Gravmag System Utility High-capacity Storage Unit Device Transmission Jammer Storage High-capacity Storage Unit Processor Modified TNC Hackware System Shield Protection Improved Medium Armor Plating Weapon Assault Rifle Ballistic Gun Assault Rifle Launcher Missile Launcher Slashing Weapon Chainsword Build | -11 -10 -10 -10 -9 -8 -7 -7 ------- Run | Scr Mat Min Exi Min Mat Fac Was Slots Evolved 6 | . . . . . 4 2 . Power . | . . . . . . . . Propulsion 2 | . . . . . 1 1 . Utility 4 | . . . . . 3 1 . Weapon . | . . . . . . . . Parts Attached 119 | 2 9 3 2 . 36 63 4 Power 11 | . . 1 . . 3 6 1 Engine 2 | . . . . . . 2 . Core 9 | . . 1 . . 3 4 1 Reactor . | . . . . . . . . Propulsion 24 | 2 1 . . . 5 13 3 Treads 13 | 1 1 . . . 5 6 . Leg . | . . . . . . . . Wheel 1 | 1 . . . . . . . Hover 10 | . . . . . . 7 3 Flight . | . . . . . . . . Utility 31 | . 3 . 2 . 6 20 . Device 4 | . . . . . . 4 . Storage 9 | . 2 . 2 . 1 4 . Processor 3 | . . . . . 2 1 . Hackware 2 | . . . . . . 2 . Protection 13 | . 1 . . . 3 9 . Artifact . | . . . . . . . . Weapon 53 | . 5 2 . . 22 24 . Energy Gun . | . . . . . . . . Energy Cannon . | . . . . . . . . Ballistic Gun 30 | . 4 1 . . 12 13 . Ballistic Cannon . | . . . . . . . . Launcher 7 | . 1 1 . . 4 1 . Special Weapon . | . . . . . . . . Impact Weapon . | . . . . . . . . Slashing Weapon 16 | . . . . . 6 10 . Piercing Weapon . | . . . . . . . . Special Melee Weapon . | . . . . . . . . Unidentified Prototypes 3 | . . . . . . 3 . Parts Lost 16 | . 1 . . . 8 3 4 Power 2 | . . . . . 1 1 . Propulsion 5 | . . . . . 1 . 4 Utility 3 | . 1 . . . 1 1 . Weapon 6 | . . . . . 5 1 . Highest Loss Streak 4 | . 1 . . . 4 2 4 Average Slot Usage (%) 98 | . 97 100 100 100 98 97 80 Engine 3 | . 14 13 . . . . . Core 6 | . . . 14 14 8 6 7 Treads 24 | . 20 28 28 28 26 23 . Hover 2 | . . . . . . 6 30 Device 2 | . . . . . . 7 5 Storage 24 | . 19 28 28 28 27 21 15 Processor 5 | . . . . . 11 7 7 Protection 5 | . 5 . . . 6 6 . Ballistic Gun 18 | . 28 27 28 28 16 11 . Slashing Weapon 1 | . . . . . 1 1 5 Naked Turns . | . . . . . . . . Heaviest Build 120 | 11 57 57 73 73 115 120 44 Greatest Support 84 | 16 40 40 40 40 60 84 44 Greatest Overweight (x) 2 | . 1 1 1 1 2 1 1 Average Overweight (x) . | . . 1 1 1 1 . . Largest Inventory Capacity 28 | 6 18 18 20 20 28 28 16 Average Capacity 23 | 6 12 18 18 20 28 25 16 Most Carried 28 | 6 11 14 20 20 24 28 16 Average Carried 18 | 4 8 12 15 19 19 24 15 Final Capacity 28 | 6 18 18 20 20 28 16 16 Final Carried 24 | 3 11 14 20 20 24 16 13 Class Distribution -------------------- 56% | Hauler-Mutant 29% | Mutant 6% | Scout 5% | Hauler-Skirmisher Dominant Class ---------------- Mutant | -10/Materials Mutant | -10/Mines Mutant | -10/Exiles Hauler-Mutant | -9/Mines Hauler-Mutant | -8/Materials Hauler-Mutant | -7/Factory Scout | -7/Waste Resources | -11 -10 -10 -10 -9 -8 -7 -7 ----------- Run | Scr Mat Min Exi Min Mat Fac Was Matter Collected 2476 | 198 264 108 20 20 997 869 . Remotely . | . . . . . . . . Salvage Created 2882 | . 326 80 . . 1592 884 . Parts 184 | . 30 3 . . 95 56 . Haulers Intercepted 2 | . 1 . . . . 1 . Recyclers Shooed 1 | . . . . . 1 . . Parts Field Recycled . | . . . . . . . . Retrieved Matter . | . . . . . . . . Parts Self-Destructed . | . . . . . . . . Prevented . | . . . . . . . . Kills | -11 -10 -10 -10 -9 -8 -7 -7 ------- Run | Scr Mat Min Exi Min Mat Fac Was Combat Hostiles Destroyed 60 | . 11 8 . . 30 11 . Melee 1 | . . . . . 1 . . Guns 52 | . 9 6 . . 26 11 . AOE 7 | . 2 2 . . 3 . . Classes Destroyed 12 | . 4 1 . . 5 2 . Worker 1 | . . . . . 1 . . Builder 4 | . . . . . 3 1 . Hauler 2 | . 1 . . . . 1 . Recycler 4 | . . . . . 1 3 . Operator 4 | . 1 . . . 3 . . Watcher 1 | . . . . . . 1 . Swarmer 15 | . 6 5 . . 4 . . Grunt 22 | . 5 . . . 17 . . Duelist 2 | . . . . . 2 . . Sentry 10 | . . . . . 7 3 . Programmer 8 | . . . . . . 8 . Assembled 3 | . . 3 . . . . . Best Kill Streak 6 | . 3 3 . . 6 2 . Combat Bots Only 4 | . 3 3 . . 4 1 . Max Kills in Single Turn 3 | . 2 2 . . 3 2 . Gunslinging . | . . . . . . . . Exploded 2 | . 2 2 . . 2 . . Melee 1 | . . . . . 1 . . Uniques/NPCs Destroyed . | . . . . . . . . Combat | -11 -10 -10 -10 -9 -8 -7 -7 -------- Run | Scr Mat Min Exi Min Mat Fac Was Damage Taken 3771 | . 235 213 . . 1551 1629 143 Core 581 | . 19 45 . . 219 203 95 Absorbed by Shields . | . . . . . . . . Core Remaining (%) 78 | 100 . . . 74 60 . . Volleys Fired 187 | . 28 13 . . 101 45 . Largest 2 | . 2 2 . . 2 2 . Hottest 56 | . 40 40 . . 48 56 . Shots Fired 363 | . 55 25 . . 192 91 . Gun 354 | . 54 24 . . 185 91 . Cannon . | . . . . . . . . Launcher 9 | . 1 1 . . 7 . . Special . | . . . . . . . . Kinetic 354 | . 54 24 . . 185 91 . Thermal . | . . . . . . . . Explosive 9 | . 1 1 . . 7 . . Electromagnetic . | . . . . . . . . Robot Hit Streak 24 | . 16 11 . . 23 24 . Robot Miss Streak 5 | . 1 2 . . 4 5 . Penetration Max . | . . . . . . . . Secondary Targets 4 | . 1 . . . 3 . . Max Gunslinging Chain 1 | . 1 . . . 1 . . Shots Hit Robots 284 | . 41 17 . . 143 83 . Core Hits 175 | . 21 10 . . 75 69 . Critical Hits 4 | . 1 . . . 3 . . Critical Kills 3 | . 1 . . . 2 . . Critical Parts Destroyed 1 | . . . . . 1 . . Melee Attacks 40 | . . . . . 14 26 . Impact . | . . . . . . . . Slashing 40 | . . . . . 14 26 . Piercing . | . . . . . . . . Sneak Attacks 3 | . . . . . . 3 . Combat Hostiles . | . . . . . . . . Follow-up Attacks . | . . . . . . . . Damage Inflicted 5272 | . 605 329 . . 2472 1866 . Guns 4123 | . 477 169 . . 1968 1509 . Cannons . | . . . . . . . . Explosions 669 | . 127 154 . . 388 . . Melee 384 | . . . . . 45 339 . Ramming 96 | . 1 6 . . 71 18 . Kinetic 4123 | . 477 169 . . 1968 1509 . Thermal . | . . . . . . . . Explosive 669 | . 127 154 . . 388 . . Electromagnetic . | . . . . . . . . Impact . | . . . . . . . . Slashing 384 | . . . . . 45 339 . Piercing . | . . . . . . . . Highest Corruption 14 | . 1 1 1 1 . 8 14 Average Corruption 2 | . 1 1 1 1 . 3 12 Corruption Purged . | . . . . . . . . Effects 56 | . . 4 3 . . 45 4 Message Errors 15 | . . 2 1 . . 12 . Matter Fused 12 | . . . . . . 11 1 Heat Flow Errors 9 | . . . . . . 8 1 Energy Discharges 7 | . . 2 1 . . 4 . Parts Rejected 1 | . . . . . . 1 . Data Loss (minor) 4 | . . . 1 . . 3 . Data Loss (major) 3 | . . . . . . 1 2 Misfires 1 | . . . . . . 1 . Targeting Errors 4 | . . . . . . 4 . Overload Shots . | . . . . . . . . Overflow Damage 171 | . . 36 . . 7 128 . Projectiles . | . . . . . . . . Explosions 41 | . . 36 . . 5 . . Melee 130 | . . . . . 2 128 . Knockbacks . | . . . . . . . . Impact . | . . . . . . . . Kinetic . | . . . . . . . . Secondary . | . . . . . . . . Self-Inflicted Damage 125 | . . 40 . . 76 9 . Shots 3 | . . 1 . . 2 . . Rammed 7 | . 1 1 . . 4 1 . Targets Rammed 7 | . 1 1 . . 4 1 . Kicked . | . . . . . . . . Crushed . | . . . . . . . . Highest Temperature 267 | . 12 6 . . 57 267 122 Average Temperature 46 | . 4 6 . . 18 78 58 Received Heat Transfer 987 | . 69 6 . . 675 237 . Siege Activations . | . . . . . . . . Robots Corrupted . | . . . . . . . . Combat Hostiles . | . . . . . . . . Parts Fried . | . . . . . . . . Impact Corruptions 1 | . . . . . 1 . . Robots Melted . | . . . . . . . . Combat Hostiles . | . . . . . . . . Parts Melted . | . . . . . . . . Heat Transferred . | . . . . . . . . Parts Sabotaged . | . . . . . . . . Parts Stolen . | . . . . . . . . Parts Stripped . | . . . . . . . . Power Chain Reactions . | . . . . . . . . Missiles Intercepted . | . . . . . . . . Alert | -11 -10 -10 -10 -9 -8 -7 -7 ------- Run | Scr Mat Min Exi Min Mat Fac Was Peak Influence 468 | . 150 121 . 6 468 196 64 Initial 196 | . . 36 . . 1 196 49 Average 101 | . 68 54 . . 168 72 56 Maximum Alert Level 2 | . . . . . 2 . . Low Security (%) 88 | 100 100 100 . 100 67 100 100 Level 1 5 | . . . . . 16 . . Level 2 5 | . . . . . 16 . . Level 3 . | . . . . . . . . Level 4 . | . . . . . . . . Level 5 . | . . . . . . . . High Security . | . . . . . . . . Max Security . | . . . . . . . . Squads Dispatched 16 | . 3 . . . 3 10 . Investigation 5 | . 1 . . . 1 3 . Extermination 7 | . . . . . . 7 . Reinforcement 4 | . 2 . . . 2 . . Assault . | . . . . . . . . Garrison . | . . . . . . . . Intercept . | . . . . . . . . Construction Impeded . | . . . . . . . . Haulers Reinforced . | . . . . . . . . Stealth | -11 -10 -10 -10 -9 -8 -7 -7 --------- Run | Scr Mat Min Exi Min Mat Fac Was Distress Signals 9 | . 2 . . . 7 . . Communications Jammed . | . . . . . . . . Distress Signals . | . . . . . . . . Times Spotted 121 | . 22 9 . . 60 24 6 Peak Tracking Total 6 | . 4 3 . . 6 5 6 Tactical Retreats 9 | . . . . . 6 3 . Traps | -11 -10 -10 -10 -9 -8 -7 -7 ------- Run | Scr Mat Min Exi Min Mat Fac Was Traps Triggered 10 | . 2 . . . 1 7 . Indirectly . | . . . . . . . . Trap Hack Attempts . | . . . . . . . . Triggered . | . . . . . . . . Disarmed . | . . . . . . . . Reprogrammed . | . . . . . . . . Reused . | . . . . . . . . Traps Extracted . | . . . . . . . . Installed . | . . . . . . . . Triggered . | . . . . . . . . Machines | -11 -10 -10 -10 -9 -8 -7 -7 ---------- Run | Scr Mat Min Exi Min Mat Fac Was Machines Disabled 5 | . 2 1 . . 2 . . Max in Single Turn 2 | . 2 1 . . 1 . . Garrison Access 2 | . . . . . 1 1 . Machines Sabotaged . | . . . . . . . . Garrisons Compromised . | . . . . . . . . Overloaded Fab Kills . | . . . . . . . . Fab Network Shutdowns . | . . . . . . . . Hacking | -11 -10 -10 -10 -9 -8 -7 -7 --------- Run | Scr Mat Min Exi Min Mat Fac Was Machines Accessed 32 | . 8 . 2 1 9 12 . Terminals 17 | . 6 . . 1 6 4 . Fabricators . | . . . . . . . . Repair Stations 1 | . . . . . . 1 . Recycling Units 7 | . 2 . . . 1 4 . Scanalyzers 2 | . . . . . 1 1 . Garrison Access 3 | . . . . . 1 2 . Total Hacks 90 | . 25 . 2 4 22 37 . Successful 54 | . 12 . 2 2 15 23 . Failed 36 | . 13 . . 2 7 14 . Catastrophic 1 | . . . . . . 1 . Database Lockouts . | . . . . . . . . Manual 51 | . 19 . 1 4 11 16 . Terminals 61 | . 21 . . 4 16 20 . Fabricators . | . . . . . . . . Repair Stations 2 | . . . . . . 2 . Recycling Units 14 | . 4 . . . 2 8 . Scanalyzers 7 | . . . . . 3 4 . Garrison Access 4 | . . . . . 1 3 . Terminal Hacks 23 | . 5 . 2 2 7 7 . Record 4 | . . . 1 . 1 2 . Robot Analysis 3 | . 1 . . 2 . . . Prototype ID Bank 1 | . 1 . . . . . . Terminal Index 2 | . . . . . 1 1 . Fabricator Index 1 | . . . . . . 1 . Scanalyzer Index 1 | . . . . . . 1 . Unreport Threat 3 | . 1 . . . 1 1 . Locate Traps 5 | . 1 . . . 3 1 . Hauler Manifests 2 | . 1 . . . 1 . . EX-Prototype ID Bank 1 | . . . 1 . . . . Fabricator Hacks . | . . . . . . . . Repair Station Hacks 2 | . . . . . . 2 . Scan Component 1 | . . . . . . 1 . Repair 1 | . . . . . . 1 . Recycling Unit Hacks 10 | . 2 . . . 1 7 . Retrieve Matter 3 | . . . . . . 3 . Retrieve Components 7 | . 2 . . . 1 4 . Scanalyzer 7 | . . . . . 3 4 . Insert Component 4 | . . . . . 2 2 . Analyze 3 | . . . . . 1 2 . Garrison Access Hacks 2 | . . . . . 1 1 . Seal Access 2 | . . . . . 1 1 . Unauthorized Hacks 10 | . 5 . . . 3 2 . Terminals 10 | . 5 . . . 3 2 . Track 4 | . 4 . . . . . . Botnet 3 | . . . . . 2 1 . Operators 3 | . 1 . . . 1 1 . Fabricators . | . . . . . . . . Repair Stations . | . . . . . . . . Recycling Units . | . . . . . . . . Scanalyzers . | . . . . . . . . Garrison Access . | . . . . . . . . Data Cores Recovered 1 | . . . . . 1 . . Used . | . . . . . . . . Hacking Detections 19 | . 6 . . . 5 8 . Full Trace Events 4 | . . . . . 1 3 . Feedback Events . | . . . . . . . . Feedback Blocked . | . . . . . . . . Robot Schematics Acquired . | . . . . . . . . Robots Built . | . . . . . . . . Matter . | . . . . . . . . Time . | . . . . . . . . Total Robot Build Rating . | . . . . . . . . Part Schematics Acquired 3 | . . . . . 1 2 . Parts Built . | . . . . . . . . Matter . | . . . . . . . . Time . | . . . . . . . . Total Part Build Rating . | . . . . . . . . Parts Repaired 1 | . . . . . . 1 . Time 44 | . . . . . . 44 . Parts Recycled . | . . . . . . . . Recycled Matter . | . . . . . . . . Retrieved Matter . | . . . . . . . . Retrieved Components 17 | . 3 . . . 8 6 . Parts Scanalyzed 3 | . . . . . 1 2 . Part Schematics Acquired 3 | . . . . . 1 2 . Parts Damaged 1 | . . . . . . 1 . Bothacking | -11 -10 -10 -10 -9 -8 -7 -7 ------------ Run | Scr Mat Min Exi Min Mat Fac Was Used RIF Installer . | . . . . . . . . Robots Hacked . | . . . . . . . . Non-combat . | . . . . . . . . Combat . | . . . . . . . . Robot Hacks Applied . | . . . . . . . . Relay Couplers Released . | . . . . . . . . Robots Rewired . | . . . . . . . . Allies Hacked . | . . . . . . . . Hacks Repelled . | . . . . . . . . Allies | -11 -10 -10 -10 -9 -8 -7 -7 -------- Run | Scr Mat Min Exi Min Mat Fac Was Total Allies 3 | . . 3 . . . . . Largest Group 3 | . . 3 2 1 1 . . Highest-Rated Group 72 | . . 72 62 31 31 . . Highest-Rated Ally 31 | . . 31 31 31 31 . . Total Orders . | . . . . . . . . Ally Attacks 18 | . . 12 . . 6 . . Total Damage 185 | . . 122 . . 63 . . Kills 2 | . . 2 . . . . . Allies Corrupted . | . . . . . . . . Allies Melted 1 | . . 1 . . . . . Intel | -11 -10 -10 -10 -9 -8 -7 -7 ------- Run | Scr Mat Min Exi Min Mat Fac Was Robot Analysis Total 3 | . 1 . . 2 . . . Derelict Logs Recovered 2 | . . 2 . . . . . Drone Launches . | . . . . . . . . Drone Recoveries . | . . . . . . . . Exploration | -11 -10 -10 -10 -9 -8 -7 -7 ------------- Run | Scr Mat Min Exi Min Mat Fac Was Turns Passed 9224 | 6 1139 1094 574 336 3106 2884 85 Spaces Moved 4921 | 3 737 493 315 183 1294 1760 136 Core . | . . . . . . . . Treads 3639 | . 293 493 315 183 1294 1061 . Legs . | . . . . . . . . Wheels 447 | 3 444 . . . . . . Hover 835 | . . . . . . 699 136 Flight . | . . . . . . . . Fastest Speed 43 | 100 100 180 180 180 180 43 48 Average Speed 150 | 100 132 180 180 180 181 125 48 Slowest Speed 200 | 100 180 180 180 180 200 180 116 Overloaded Moves . | . . . . . . . . Propulsion Burnouts . | . . . . . . . . Robots Hopped . | . . . . . . . . Cave-ins Triggered . | . . . . . . . . Exploration Rate (%) 64 | 2 96 80 70 48 92 41 86 Regions Visited 7 Branch Regions 3 Pre-discovered Areas 1 | . . . 1 . . . . Known Exits Taken 1 | . . . . . 1 . . Unknown Exits Taken 5 | 1 1 1 1 1 . . . Scrap Searched 2 | . . 1 . 1 . . . Spaces Dug 33 | . . . . . 12 21 . Terrain Destroyed 99 | . 5 11 . . 62 21 . Melee 33 | . . . . . 12 21 . Projectile . | . . . . . . . . AOE 66 | . 5 11 . . 50 . . Terrain Rammed . | . . . . . . . . Walls Destroyed . | . . . . . . . . Machines Disabled . | . . . . . . . . Actions | -11 -10 -10 -10 -9 -8 -7 -7 --------- Run | Scr Mat Min Exi Min Mat Fac Was Total 6345 | 7 846 673 321 191 1836 2314 157 Wait 928 | . 60 159 . . 360 335 14 Move 4915 | 2 736 492 314 182 1293 1760 136 Hop . | . . . . . . . . Pick Up 71 | . 8 4 5 3 19 30 2 Fast Attach 12 | . 2 . . . 2 8 . Attach 37 | 2 1 . . . 10 20 4 Detach 9 | . . . . . . 9 . Swap 70 | . 6 3 2 . 24 35 . Drop 64 | 3 4 1 . 3 9 43 1 Fire 187 | . 28 13 . . 101 45 . Melee 40 | . . . . . 14 26 . Ram 1 | . . . . . . 1 . Kick . | . . . . . . . . Crush 6 | . 1 1 . . 4 . . Escape Stasis 2 | . . . . . . 2 . Rewire 3 | . . . . 3 . . . Trap . | . . . . . . . . Miscellaneous . | . . . . . . . . Route ------- -11/Scrapyard -10/Materials (discovered 4 exits: [*Mat x3] / [*Min]) -10/Mines (discovered 3 exits: [*Mat x2] / *Exi) -10/Exiles -9/Mines (discovered 2 exits: *Mat x2) -8/Materials (discovered 3 exits: *Fac x3) -7/Factory (discovered 5 exits: [*Fac x3] / [*Low x2]) -7/Waste (discovered 1 exit: [Fac]) History --------- Turn | Location | Event 5 | -11/Scrapyard | Discovered new exit (range 1) 7 | -11/Scrapyard | Entered Materials 290 | -10/Materials | Discovered new exit (range 3) 332 | -10/Materials | Build established: Mutant 547 | -10/Materials | Discovered new exit (range 6) 904 | -10/Materials | Discovered new exit (range 4) 1101 | -10/Materials | Discovered new exit (range 5) 1146 | -10/Materials | Entered Mines 1158 | -10/Mines | Assembled infested the area 1163 | -10/Mines | Assisted by a Guerilla fighting off Assembled 1458 | -10/Mines | Learned location of 1 exit from Materials 1714 | -10/Mines | Received a Rocket Launcher from a helpful Derelict 1737 | -10/Mines | Discovered new exit (range 11) 1888 | -10/Mines | Discovered new exit (range 15) 2025 | -10/Mines | Met a Derelict testing a Signal Generator 2137 | -10/Mines | Learned 2 Materials zone layouts 2231 | -10/Mines | Deemed a non-threat by the Exiles lab entrance 2233 | -10/Mines | Discovered new exit (range 5) 2240 | -10/Mines | Entered Exiles 2240 | -10/Exiles | Accompanied by 2 allies 2270 | -10/Exiles | Led the pair of lost Derelicts to a safe place 2285 | -10/Exiles | Met 8R-AWN 2314 | -10/Exiles | Met EX-HEX 2410 | -10/Exiles | Met EX-DEC 2449 | -10/Exiles | Learned location of Zion (-7) 2482 | -10/Exiles | Met EX-BIN 2507 | -10/Exiles | Aligned with FarCom system 2509 | -10/Exiles | Given EX-Vault access code 2552 | -10/Exiles | Opened EX-Vault 2564 | -10/Exiles | Found Modified TNC 2600 | -10/Exiles | Warned to stay clear of 0b10 Research branches 2797 | -10/Exiles | Discovered new exit (range 11) 2814 | -10/Exiles | Left Exiles lab with Modified TNC 2814 | -10/Exiles | Entered Mines 2814 | -9/Mines | Accompanied by 1 ally 2820 | -9/Mines | Met a Derelict bent on vengeance 2845 | -9/Mines | Discovered new exit (range 13) 3027 | -9/Mines | Build established: Hauler-Mutant 3121 | -9/Mines | Discovered new exit (range 10) 3150 | -9/Mines | Entered Materials 3150 | -8/Materials | Accompanied by 1 ally 3150 | -8/Materials | Evolved 4 slots: Propulsion x1, Utility x3 3151 | -8/Materials | Identified exit to Factory 3920 | -8/Materials | Lost 4 parts (1p1u2w) 4531 | -8/Materials | Discovered exit to Factory (range 16) 5500 | -8/Materials | Discovered exit to Factory (range 15) 6256 | -8/Materials | Entered Factory 6256 | -7/Factory | Evolved 2 slots: Propulsion x1, Utility x1 7605 | -7/Factory | Discovered new exit (range 5) 8051 | -7/Factory | Discovered new exit (range 14) 8096 | -7/Factory | Repaired Gravmag System 8564 | -7/Factory | Discovered new exit (range 14) 8704 | -7/Factory | Discovered new exit (range 19) 8859 | -7/Factory | Discovered new exit (range 4) 9140 | -7/Factory | Sucked down chute 9140 | -7/Factory | Entered Waste 9151 | -7/Waste | Spotted C-40 Crusher 9151 | -7/Waste | Spotted C-40 Crusher 9155 | -7/Waste | EMP discharged 9155 | -7/Waste | System corruption reached 10% 9190 | -7/Waste | Spotted C-40 Crusher 9192 | -7/Waste | Spotted C-40 Crusher 9193 | -7/Waste | Spotted C-40 Crusher 9202 | -7/Waste | Crushed by Compactor (1 part destroyed, 1 dropped) 9203 | -7/Waste | Discovered new exit (range 20) 9205 | -7/Waste | Crushed by Compactor (1 part destroyed, 2 dropped) 9207 | -7/Waste | Spotted C-40 Crusher 9223 | -7/Waste | Crushed by Compactor (1 part destroyed, 1 dropped) 9225 | -7/Waste | Self-destructed Last Messages --------------- 09145_ ALERT: Foreign system detected. Charging EMP. 09155_ Broken Imp. Carbon-fiber Leg fried beyond repair. 09155_ System corrupted (+6). 09155_ Imp. Powered Armor fried beyond repair. 09155_ Recoil Nullifier fried beyond repair. 09164_ System corrupted: Substantial component data lost. 09179_ System corrupted: Heat flow error (+144). 09201_ System corrupted: Substantial component data lost. 09202_ Gravmag System crushed. 09202_ Chainsword crushed. 09202_ Critical hit. 09202_ Gravmag System destroyed. 09203_ EXIT=FOUND 09205_ Gravmag System crushed. 09205_ Enh. Nuclear Core crushed. 09205_ Adv. Terrain Scanner crushed. 09206_ Acquired Chainsword. 09210_ Enh. Nuclear Core crushed. 09219_ System corrupted: Matter fused (-6). 09223_ Gravmag System crushed. Map ----- +----------------------------------------------------+ | ?????????????????????????????????????????????????? | | ?????????????????????????????????????????????????? | | ??????????????????##########?????????????????????? | | ??????????????????# #?????????????????????? | | ??????????????????# #?????????????????????? | | ????????????????#?# #?????????????????????? | | ????#??????????#??# #?????????????????????? | | ???#??#???#???????# #?????????????????????? | | ???#??????#??????## #?????????????????????? | | ?####???????#?????# #?????????????????????? | | ##?#??############# #?????????????????????? | | #?#?#?## #??#?### ####????????????????????? | | ##?##### #??????# #???????????????????????? | | ##??#?## #?#????# #???#???????????????????? | | #?###?## ##????## #???????????????????????? | | ###??#?# #####??# ###?????#???????????????? | | #####??# ##??#??# ##??????#?????????????? | | ####?#?# ##?##??# #?#??#?#??????????????? | | #??##??# ##?##??# #?????????????????????? | | #####?## ##???#?# #????##???????????????? | | #?###### #??###?# ###?????????????????????? | | ##????## #?#?#??# CC #?#???#?#???????????????? | | #?####?# ###????# CC ##??#???????????????????? | | ###?#### ##????## CC #?????????#?????????????? | | ######## ######## CC=###?????????????????????? | | CC @ #???????#?????????????? | | CC CCCC #?#???????????????????? | | CC CC #?????????????????????? | | #?#??#????????????????? | | ######## ######## ####????#???????????????? | | ######## #?##??## #???????????????????????? | | ##?#?### ##?#???# #?#?????????????????????? | | #####?## ##?###?# #???????????????????????? | | ######## #??????# ###????? ???????????????? | | ##?#?#?# #??##??# ???????????????????????? | | #???##?# #??????#* ??????????????????????? | | #####??# #??###?# ??????